[Event "Titled Tuesday Blitz February 07 Early 2023"]
[White "Gurevich, Dmitry"]
[Black "Schut, Han"]
[WhiteFideId "2000407"]
[BlackFideId "1005561"]
[WhiteElo "2393"]
[BlackElo "2101"]
[Result "0-1"]
[Round "02"]
[TimeControl "180+2"]
[Date "2023.02.07"]
[WhiteClock "0:00:29"]
[BlackClock "0:00:15"]

1. d4 {[%clk 0:03:00]}  Nf6 {[%clk 0:02:59]} 2. c4 {[%clk 0:02:57]}  g6 {[%clk 0:02:58]} 3. Nc3 {[%clk 0:02:55]}  d5 {[%clk 0:02:59]} 4. Nf3 {[%clk 0:02:55]}  Bg7 {[%clk 0:02:59]} 5. cxd5 {[%clk 0:02:54]}  Nxd5 {[%clk 0:02:58]} 6. Bd2 {[%clk 0:02:54]}  Nb6 {[%clk 0:02:58]} 7. Bg5 {[%clk 0:02:52]}  Nc6 {[%clk 0:02:49]} 8. e3 {[%clk 0:02:51]}  O-O {[%clk 0:02:46]} 9. Bb5 {[%clk 0:02:49]}  Qd6 {[%clk 0:02:32]} 10. O-O {[%clk 0:02:37]}  Bg4 {[%clk 0:02:16]} 11. h3 {[%clk 0:02:34]}  Bxf3 {[%clk 0:02:13]} 12. Qxf3 {[%clk 0:02:33]}  e5 {[%clk 0:02:13]} 13. Bxc6 {[%clk 0:02:01]}  exd4 {[%clk 0:01:48]} 14. Bxb7 {[%clk 0:01:53]}  dxc3 {[%clk 0:01:48]} 15. Bxa8 {[%clk 0:01:49]}  cxb2 {[%clk 0:01:48]} 16. Rad1 {[%clk 0:01:44]}  Qc5 {[%clk 0:01:36]} 17. Bf6 {[%clk 0:01:40]}  Rxa8 {[%clk 0:01:30]} 18. Bxg7 {[%clk 0:01:39]}  Kxg7 {[%clk 0:01:30]} 19. Qe4 {[%clk 0:01:37]}  Qc3 {[%clk 0:00:53]} 20. Qd4+ {[%clk 0:01:33]}  Qxd4 {[%clk 0:00:53]} 21. Rxd4 {[%clk 0:01:32]}  c5 {[%clk 0:00:53]} 22. Rd2 {[%clk 0:01:28]}  Na4 {[%clk 0:00:53]} 23. Rc2 {[%clk 0:01:24]}  Rb8 {[%clk 0:00:52]} 24. Rb1 {[%clk 0:01:23]}  Kf6 {[%clk 0:00:46]} 25. Rc4 {[%clk 0:01:12]}  Rb4 {[%clk 0:00:39]} 26. Rxb4 {[%clk 0:01:12]}  cxb4 {[%clk 0:00:40]} 27. Kf1 {[%clk 0:01:12]}  Ke5 {[%clk 0:00:37]} 28. Ke1 {[%clk 0:01:12]}  a5 {[%clk 0:00:28]} 29. Kd2 {[%clk 0:01:11]}  Kd5 {[%clk 0:00:17]} 30. Kc2 {[%clk 0:01:10]}  Nc3 {[%clk 0:00:16]} 31. Re1 {[%clk 0:01:03]}  b1=Q+ {[%clk 0:00:15]} 32. Rxb1 {[%clk 0:01:01]}  Nxb1 {[%clk 0:00:16]} 33. Kxb1 {[%clk 0:01:01]}  a4 {[%clk 0:00:16]} 34. Kc2 {[%clk 0:01:00]}  Kc4 {[%clk 0:00:17]} 35. e4 {[%clk 0:00:53]}  g5 {[%clk 0:00:15]} 36. g3 {[%clk 0:00:29]}  Kd4 {[%clk 0:00:15]} 0-1


[Site "https://www.chess.com"]

[Event "Titled Tuesday Blitz February 07 Early 2023"]
[White "Ruiz Aguilar, Pablo Alexander"]
[Black "Seletsky, Grigory"]
[WhiteFideId "4401352"]
[BlackFideId "14112191"]
[WhiteElo "2161"]
[BlackElo "2259"]
[Result "0-1"]
[Round "02"]
[TimeControl "180+2"]
[Date "2023.02.07"]
[WhiteClock "0:00:02"]
[BlackClock "0:00:05"]

1. e4 {[%clk 0:02:57]}  c5 {[%clk 0:02:58]} 2. Nf3 {[%clk 0:02:52]}  d6 {[%clk 0:02:58]} 3. d4 {[%clk 0:02:53]}  cxd4 {[%clk 0:02:59]} 4. Nxd4 {[%clk 0:02:54]}  Nf6 {[%clk 0:02:59]} 5. Nc3 {[%clk 0:02:54]}  a6 {[%clk 0:02:59]} 6. Be2 {[%clk 0:02:53]}  e5 {[%clk 0:02:59]} 7. Nf3 {[%clk 0:02:53]}  Be7 {[%clk 0:03:00]} 8. Bg5 {[%clk 0:02:53]}  Be6 {[%clk 0:02:59]} 9. Bxf6 {[%clk 0:02:52]}  Bxf6 {[%clk 0:02:59]} 10. Qd3 {[%clk 0:02:53]}  O-O {[%clk 0:02:51]} 11. O-O-O {[%clk 0:02:51]}  Be7 {[%clk 0:02:51]} 12. Nd5 {[%clk 0:02:50]}  Bxd5 {[%clk 0:02:50]} 13. Qxd5 {[%clk 0:02:49]}  Qc7 {[%clk 0:02:51]} 14. Kb1 {[%clk 0:02:45]}  Nd7 {[%clk 0:02:51]} 15. h4 {[%clk 0:02:31]}  Nf6 {[%clk 0:02:51]} 16. Qd3 {[%clk 0:02:30]}  b5 {[%clk 0:02:50]} 17. h5 {[%clk 0:02:26]}  Rfd8 {[%clk 0:02:36]} 18. Nh4 {[%clk 0:02:09]}  h6 {[%clk 0:02:18]} 19. Nf5 {[%clk 0:02:08]}  Bf8 {[%clk 0:02:19]} 20. Qf3 {[%clk 0:02:03]}  Rac8 {[%clk 0:02:05]} 21. Bd3 {[%clk 0:01:59]}  Nh7 {[%clk 0:02:01]} 22. Qg4 {[%clk 0:01:55]}  Kh8 {[%clk 0:01:57]} 23. f4 {[%clk 0:01:51]}  exf4 {[%clk 0:01:53]} 24. Qxf4 {[%clk 0:01:51]}  Ng5 {[%clk 0:01:53]} 25. Ne3 {[%clk 0:01:37]}  Qb7 {[%clk 0:01:41]} 26. Nd5 {[%clk 0:01:36]}  a5 {[%clk 0:01:39]} 27. Rhf1 {[%clk 0:01:30]}  b4 {[%clk 0:01:37]} 28. Qf5 {[%clk 0:01:25]}  a4 {[%clk 0:01:37]} 29. b3 {[%clk 0:00:27]}  a3 {[%clk 0:01:36]} 30. Qf4 {[%clk 0:00:26]}  Rc5 {[%clk 0:01:17]} 31. Ne3 {[%clk 0:00:25]}  Re5 {[%clk 0:01:05]} 32. Nc4 {[%clk 0:00:23]}  Re6 {[%clk 0:00:20]} 33. e5 {[%clk 0:00:20]}  dxe5 {[%clk 0:00:18]} 34. Nxe5 {[%clk 0:00:20]}  Re7 {[%clk 0:00:13]} 35. Ng6+ {[%clk 0:00:16]}  Kg8 {[%clk 0:00:10]} 36. Nxe7+ {[%clk 0:00:15]}  Bxe7 {[%clk 0:00:10]} 37. Qc4 {[%clk 0:00:12]}  Bf6 {[%clk 0:00:07]} 38. Qc5 {[%clk 0:00:03]}  Rc8 {[%clk 0:00:07]} 39. Qe3 {[%clk 0:00:02]}  Qc7 {[%clk 0:00:05]} 0-1


[Site "https://www.chess.com"]

[Event "Titled Tuesday Blitz February 07 Early 2023"]
[White "Prudnykova, Olga"]
[Black "Slade, Theodore"]
[WhiteFideId "14121093"]
[BlackFideId "426547"]
[WhiteElo "2268"]
[BlackElo "1995"]
[Result "1-0"]
[Round "02"]
[TimeControl "180+2"]
[Date "2023.02.07"]
[WhiteClock "0:00:07"]
[BlackClock "0:00:04"]

1. e4 {[%clk 0:03:00]}  e5 {[%clk 0:02:59]} 2. d4 {[%clk 0:03:00]}  exd4 {[%clk 0:03:00]} 3. Qxd4 {[%clk 0:03:00]}  Nc6 {[%clk 0:03:01]} 4. Qc4 {[%clk 0:03:00]}  Nf6 {[%clk 0:02:58]} 5. Nc3 {[%clk 0:03:00]}  Bb4 {[%clk 0:02:55]} 6. Bg5 {[%clk 0:03:00]}  O-O {[%clk 0:02:48]} 7. Ne2 {[%clk 0:02:59]}  Re8 {[%clk 0:02:41]} 8. O-O-O {[%clk 0:02:48]}  Bxc3 {[%clk 0:02:24]} 9. Nxc3 {[%clk 0:02:48]}  Ne5 {[%clk 0:02:22]} 10. Qe2 {[%clk 0:02:40]}  h6 {[%clk 0:02:07]} 11. Bh4 {[%clk 0:02:36]}  Ng6 {[%clk 0:02:07]} 12. Bg3 {[%clk 0:02:33]}  d6 {[%clk 0:02:06]} 13. f3 {[%clk 0:02:32]}  Be6 {[%clk 0:02:03]} 14. Qd2 {[%clk 0:02:17]}  a6 {[%clk 0:01:56]} 15. Bf2 {[%clk 0:02:15]}  b5 {[%clk 0:01:55]} 16. g4 {[%clk 0:02:12]}  b4 {[%clk 0:01:54]} 17. Nd5 {[%clk 0:02:11]}  Bxd5 {[%clk 0:01:50]} 18. exd5 {[%clk 0:02:11]}  Qd7 {[%clk 0:01:41]} 19. h4 {[%clk 0:02:10]}  a5 {[%clk 0:01:33]} 20. g5 {[%clk 0:02:07]}  hxg5 {[%clk 0:01:34]} 21. hxg5 {[%clk 0:02:07]}  Nh7 {[%clk 0:01:33]} 22. Bd3 {[%clk 0:02:04]}  b3 {[%clk 0:01:24]} 23. cxb3 {[%clk 0:01:59]}  a4 {[%clk 0:01:23]} 24. Bd4 {[%clk 0:01:55]}  axb3 {[%clk 0:01:22]} 25. a3 {[%clk 0:01:54]}  c6 {[%clk 0:01:18]} 26. Qh2 {[%clk 0:01:22]}  Nhf8 {[%clk 0:00:44]} 27. f4 {[%clk 0:00:46]}  Rec8 {[%clk 0:00:11]} 28. f5 {[%clk 0:00:43]}  cxd5+ {[%clk 0:00:11]} 29. Kb1 {[%clk 0:00:43]}  Rxa3 {[%clk 0:00:05]} 30. bxa3 {[%clk 0:00:40]}  Qa4 {[%clk 0:00:05]} 31. Qb2 {[%clk 0:00:37]}  Ne5 {[%clk 0:00:04]} 32. Bxe5 {[%clk 0:00:18]}  dxe5 {[%clk 0:00:05]} 33. Rc1 {[%clk 0:00:17]}  Ra8 {[%clk 0:00:04]} 34. Qh2 {[%clk 0:00:12]}  f6 {[%clk 0:00:02]} 35. g6 {[%clk 0:00:11]}  Nxg6 {[%clk 0:00:03]} 36. fxg6 {[%clk 0:00:12]}  Kf8 {[%clk 0:00:03]} 37. Qh8+ {[%clk 0:00:08]}  Ke7 {[%clk 0:00:04]} 38. Rc7+ {[%clk 0:00:08]}  Kd6 {[%clk 0:00:04]} 39. Qxg7 {[%clk 0:00:07]}  Qxa3 {[%clk 0:00:04]} 40. Qe7# {[%clk 0:00:07]} 1-0


[Site "https://www.chess.com"]

[Event "Titled Tuesday Blitz February 07 Early 2023"]
[White "Zanette, Edgard Vinicius"]
[Black "Kochetov, Andrey"]
[WhiteFideId "2109263"]
[BlackFideId "24130532"]
[WhiteElo "2085"]
[BlackElo "2165"]
[Result "0-1"]
[Round "02"]
[TimeControl "180+2"]
[Date "2023.02.07"]
[WhiteClock "0:00:08"]
[BlackClock "0:00:16"]

1. e4 {[%clk 0:03:00]}  e5 {[%clk 0:02:59]} 2. Nf3 {[%clk 0:03:00]}  Nf6 {[%clk 0:02:59]} 3. Nc3 {[%clk 0:02:57]}  Nc6 {[%clk 0:02:59]} 4. Bb5 {[%clk 0:02:56]}  Bb4 {[%clk 0:02:57]} 5. O-O {[%clk 0:02:53]}  O-O {[%clk 0:02:55]} 6. Bxc6 {[%clk 0:02:53]}  dxc6 {[%clk 0:02:53]} 7. Nxe5 {[%clk 0:02:50]}  Bxc3 {[%clk 0:02:48]} 8. bxc3 {[%clk 0:01:59]}  Re8 {[%clk 0:02:39]} 9. Nc4 {[%clk 0:01:27]}  Be6 {[%clk 0:02:27]} 10. Ne3 {[%clk 0:01:16]}  Nxe4 {[%clk 0:02:26]} 11. f3 {[%clk 0:01:15]}  Nf6 {[%clk 0:02:25]} 12. d3 {[%clk 0:01:10]}  Qd6 {[%clk 0:02:16]} 13. c4 {[%clk 0:01:06]}  Rad8 {[%clk 0:01:57]} 14. Kh1 {[%clk 0:01:00]}  h5 {[%clk 0:01:51]} 15. Rb1 {[%clk 0:00:51]}  b6 {[%clk 0:01:49]} 16. Re1 {[%clk 0:00:42]}  h4 {[%clk 0:01:48]} 17. Nf1 {[%clk 0:00:36]}  Qc5 {[%clk 0:01:37]} 18. Be3 {[%clk 0:00:32]}  Qa5 {[%clk 0:01:26]} 19. Qd2 {[%clk 0:00:30]}  Qh5 {[%clk 0:01:12]} 20. Qf2 {[%clk 0:00:29]}  Nd7 {[%clk 0:01:03]} 21. Nd2 {[%clk 0:00:27]}  Bf5 {[%clk 0:01:01]} 22. Ne4 {[%clk 0:00:27]}  Ne5 {[%clk 0:00:58]} 23. a4 {[%clk 0:00:26]}  h3 {[%clk 0:00:50]} 24. g4 {[%clk 0:00:22]}  Nxg4 {[%clk 0:00:41]} 25. fxg4 {[%clk 0:00:22]}  Bxe4+ {[%clk 0:00:41]} 26. dxe4 {[%clk 0:00:20]}  Qxg4 {[%clk 0:00:42]} 27. Bf4 {[%clk 0:00:19]}  Rd4 {[%clk 0:00:33]} 28. Rg1 {[%clk 0:00:15]}  Qh5 {[%clk 0:00:29]} 29. Qg3 {[%clk 0:00:14]}  g6 {[%clk 0:00:27]} 30. Rbe1 {[%clk 0:00:13]}  Rexe4 {[%clk 0:00:25]} 31. Be5 {[%clk 0:00:10]}  Rxe1 {[%clk 0:00:15]} 32. Rxe1 {[%clk 0:00:11]}  Rd1 {[%clk 0:00:15]} 33. Qe3 {[%clk 0:00:10]}  Rxe1+ {[%clk 0:00:15]} 34. Qxe1 {[%clk 0:00:08]}  Qf3+ {[%clk 0:00:16]} 35. Kg1 {[%clk 0:00:08]}  Qg2# {[%clk 0:00:16]} 0-1


[Site "https://www.chess.com"]

[Event "Titled Tuesday Blitz February 07 Early 2023"]
[White "Bettalli, Francesco"]
[Black "Rudzinska, Michalina"]
[WhiteFideId "2816453"]
[BlackFideId "1172883"]
[WhiteElo "2252"]
[BlackElo "2244"]
[Result "0-1"]
[Round "02"]
[TimeControl "180+2"]
[Date "2023.02.07"]
[WhiteClock "0:00:02"]
[BlackClock "0:01:13"]

1. d4 {[%clk 0:01:11]}  Nf6 {[%clk 0:02:58]} 2. Nc3 {[%clk 0:01:10]}  d5 {[%clk 0:02:57]} 3. Bg5 {[%clk 0:01:09]}  Bf5 {[%clk 0:02:53]} 4. f3 {[%clk 0:01:06]}  h6 {[%clk 0:02:51]} 5. Bxf6 {[%clk 0:01:05]}  exf6 {[%clk 0:02:49]} 6. e4 {[%clk 0:01:06]}  dxe4 {[%clk 0:02:46]} 7. fxe4 {[%clk 0:01:07]}  Bg6 {[%clk 0:02:45]} 8. Nf3 {[%clk 0:01:07]}  Bb4 {[%clk 0:02:45]} 9. Bd3 {[%clk 0:01:07]}  O-O {[%clk 0:02:45]} 10. O-O {[%clk 0:01:08]}  c5 {[%clk 0:02:44]} 11. d5 {[%clk 0:01:07]}  Nd7 {[%clk 0:02:42]} 12. a3 {[%clk 0:01:07]}  Bxc3 {[%clk 0:02:42]} 13. bxc3 {[%clk 0:01:08]}  Bh5 {[%clk 0:02:42]} 14. Qe1 {[%clk 0:01:07]}  Bxf3 {[%clk 0:02:42]} 15. Rxf3 {[%clk 0:01:08]}  Ne5 {[%clk 0:02:42]} 16. Rh3 {[%clk 0:01:08]}  Re8 {[%clk 0:02:36]} 17. Qg3 {[%clk 0:01:08]}  Kh7 {[%clk 0:02:29]} 18. Rf1 {[%clk 0:01:07]}  Qe7 {[%clk 0:02:21]} 19. c4 {[%clk 0:01:05]}  a6 {[%clk 0:02:19]} 20. a4 {[%clk 0:01:05]}  b5 {[%clk 0:02:18]} 21. axb5 {[%clk 0:01:05]}  axb5 {[%clk 0:02:18]} 22. cxb5 {[%clk 0:01:06]}  c4 {[%clk 0:02:18]} 23. Be2 {[%clk 0:01:05]}  Qc5+ {[%clk 0:02:19]} 24. Kh1 {[%clk 0:01:06]}  Qxb5 {[%clk 0:02:19]} 25. Bg4 {[%clk 0:00:24]}  c3 {[%clk 0:02:14]} 26. Bf5+ {[%clk 0:00:21]}  g6 {[%clk 0:02:14]} 27. Qf4 {[%clk 0:00:19]}  h5 {[%clk 0:02:04]} 28. Rxh5+ {[%clk 0:00:19]}  Kg8 {[%clk 0:02:04]} 29. Rh3 {[%clk 0:00:16]}  gxf5 {[%clk 0:02:00]} 30. Rg3+ {[%clk 0:00:15]}  Kf8 {[%clk 0:01:53]} 31. Qxf5 {[%clk 0:00:15]}  Ra6 {[%clk 0:01:37]} 32. Rd1 {[%clk 0:00:14]}  Rea8 {[%clk 0:01:33]} 33. Qh5 {[%clk 0:00:08]}  Ra1 {[%clk 0:01:31]} 34. d6 {[%clk 0:00:04]}  Rxd1+ {[%clk 0:01:30]} 35. Qxd1 {[%clk 0:00:05]}  Qe2 {[%clk 0:01:26]} 36. Qg1 {[%clk 0:00:02]}  Qxc2 {[%clk 0:01:19]} 37. h4 {[%clk 0:00:02]}  Qxe4 {[%clk 0:01:13]} 0-1


[Site "https://www.chess.com"]

[Event "Titled Tuesday Blitz February 07 Early 2023"]
[White "Osmonbekov, Talaibek"]
[Black "Toncheva, Nadya"]
[WhiteFideId "2017253"]
[BlackFideId "2924056"]
[WhiteElo "2137"]
[BlackElo "2295"]
[Result "0-1"]
[Round "02"]
[TimeControl "180+2"]
[Date "2023.02.07"]
[WhiteClock "0:00:22"]
[BlackClock "0:00:41"]

1. d4 {[%clk 0:03:00]}  d5 {[%clk 0:02:59]} 2. Bf4 {[%clk 0:03:01]}  Nf6 {[%clk 0:02:59]} 3. Nc3 {[%clk 0:03:02]}  c5 {[%clk 0:02:56]} 4. e3 {[%clk 0:03:02]}  cxd4 {[%clk 0:02:56]} 5. exd4 {[%clk 0:03:02]}  Bg4 {[%clk 0:02:57]} 6. f3 {[%clk 0:03:00]}  Bd7 {[%clk 0:02:57]} 7. Bd3 {[%clk 0:02:56]}  e6 {[%clk 0:02:54]} 8. Nge2 {[%clk 0:02:56]}  Be7 {[%clk 0:02:47]} 9. O-O {[%clk 0:02:56]}  O-O {[%clk 0:02:48]} 10. Kh1 {[%clk 0:02:56]}  Qb6 {[%clk 0:02:47]} 11. Rb1 {[%clk 0:02:49]}  Nc6 {[%clk 0:02:46]} 12. a3 {[%clk 0:02:42]}  Rfc8 {[%clk 0:02:30]} 13. Qd2 {[%clk 0:02:28]}  Na5 {[%clk 0:02:28]} 14. Be5 {[%clk 0:02:08]}  Nc4 {[%clk 0:02:26]} 15. Qf4 {[%clk 0:01:56]}  Nxe5 {[%clk 0:02:07]} 16. dxe5 {[%clk 0:01:55]}  Ne8 {[%clk 0:02:07]} 17. Qg3 {[%clk 0:01:47]}  g6 {[%clk 0:02:04]} 18. h4 {[%clk 0:01:44]}  Ng7 {[%clk 0:02:04]} 19. Nf4 {[%clk 0:01:40]}  Qd4 {[%clk 0:02:01]} 20. Rbe1 {[%clk 0:01:24]}  Rab8 {[%clk 0:01:34]} 21. h5 {[%clk 0:01:07]}  b5 {[%clk 0:01:30]} 22. hxg6 {[%clk 0:00:55]}  hxg6 {[%clk 0:01:27]} 23. Nxg6 {[%clk 0:00:47]}  fxg6 {[%clk 0:01:24]} 24. f4 {[%clk 0:00:47]}  Be8 {[%clk 0:01:17]} 25. Rd1 {[%clk 0:00:42]}  Qb6 {[%clk 0:01:08]} 26. Bxg6 {[%clk 0:00:41]}  Bxg6 {[%clk 0:01:05]} 27. Qxg6 {[%clk 0:00:41]}  Qd8 {[%clk 0:01:05]} 28. Ne4 {[%clk 0:00:39]}  Qe8 {[%clk 0:00:58]} 29. Nf6+ {[%clk 0:00:33]}  Bxf6 {[%clk 0:00:57]} 30. Qxf6 {[%clk 0:00:33]}  Qh5+ {[%clk 0:00:55]} 31. Kg1 {[%clk 0:00:32]}  Rxc2 {[%clk 0:00:48]} 32. Rd3 {[%clk 0:00:26]}  Qg4 {[%clk 0:00:43]} 33. Rf2 {[%clk 0:00:25]}  Rxf2 {[%clk 0:00:41]} 34. Kxf2 {[%clk 0:00:26]}  Rc8 {[%clk 0:00:41]} 35. Rd2 {[%clk 0:00:22]}  Rf8 {[%clk 0:00:41]} 0-1


[Site "https://www.chess.com"]

[Event "Titled Tuesday Blitz February 07 Early 2023"]
[White "Dushyant Sharma"]
[Black "Theytookourjobs"]
[WhiteFideId "25065130"]
[WhiteElo "2355"]
[BlackElo "2291"]
[Result "1-0"]
[Round "02"]
[TimeControl "180+2"]
[Date "2023.02.07"]
[WhiteClock "0:02:16"]
[BlackClock "0:00:15"]

1. e4 {[%clk 0:02:59]}  e6 {[%clk 0:03:00]} 2. d4 {[%clk 0:02:58]}  d5 {[%clk 0:03:01]} 3. exd5 {[%clk 0:02:59]}  exd5 {[%clk 0:03:01]} 4. Bd3 {[%clk 0:03:00]}  Bd6 {[%clk 0:03:01]} 5. Nf3 {[%clk 0:03:01]}  Ne7 {[%clk 0:03:01]} 6. O-O {[%clk 0:03:02]}  Bg4 {[%clk 0:03:02]} 7. c3 {[%clk 0:03:03]}  Nbc6 {[%clk 0:03:01]} 8. Be3 {[%clk 0:03:04]}  Qd7 {[%clk 0:03:02]} 9. Nbd2 {[%clk 0:03:04]}  O-O-O {[%clk 0:03:00]} 10. b4 {[%clk 0:03:05]}  Ng6 {[%clk 0:02:57]} 11. a4 {[%clk 0:03:04]}  Nce7 {[%clk 0:02:45]} 12. a5 {[%clk 0:03:04]}  Rde8 {[%clk 0:02:35]} 13. b5 {[%clk 0:02:59]}  Nh4 {[%clk 0:02:17]} 14. Be2 {[%clk 0:02:55]}  Bxf3 {[%clk 0:01:58]} 15. Nxf3 {[%clk 0:02:54]}  Nxf3+ {[%clk 0:01:57]} 16. Bxf3 {[%clk 0:02:55]}  Qxb5 {[%clk 0:01:57]} 17. Rb1 {[%clk 0:02:51]}  Qxa5 {[%clk 0:01:53]} 18. Qb3 {[%clk 0:02:46]}  Qa6 {[%clk 0:00:44]} 19. c4 {[%clk 0:02:46]}  c6 {[%clk 0:00:29]} 20. cxd5 {[%clk 0:02:42]}  Nxd5 {[%clk 0:00:29]} 21. Bxd5 {[%clk 0:02:40]}  cxd5 {[%clk 0:00:29]} 22. Qxd5 {[%clk 0:02:35]}  Bc7 {[%clk 0:00:28]} 23. Rfc1 {[%clk 0:02:27]}  Kb8 {[%clk 0:00:28]} 24. Rxc7 {[%clk 0:02:15]}  Kxc7 {[%clk 0:00:21]} 25. Bf4+ {[%clk 0:02:15]}  Kc8 {[%clk 0:00:15]} 26. Rc1+ {[%clk 0:02:16]} 1-0


[Site "https://www.chess.com"]

[Event "Titled Tuesday Blitz February 07 Early 2023"]
[White "Antonio, Jorge Carlos"]
[Black "Buksa, Nataliya"]
[WhiteFideId "113190"]
[BlackFideId "14123622"]
[WhiteElo "2277"]
[BlackElo "2406"]
[Result "1-0"]
[Round "02"]
[TimeControl "180+2"]
[Date "2023.02.07"]
[WhiteClock "0:00:25"]
[BlackClock "0:00:05"]

1. d4 {[%clk 0:03:00]}  d5 {[%clk 0:02:49]} 2. Nf3 {[%clk 0:03:01]}  e6 {[%clk 0:02:48]} 3. Bf4 {[%clk 0:03:00]}  Nf6 {[%clk 0:02:48]} 4. e3 {[%clk 0:02:59]}  Be7 {[%clk 0:02:47]} 5. c3 {[%clk 0:02:59]}  O-O {[%clk 0:02:47]} 6. Bd3 {[%clk 0:02:55]}  c5 {[%clk 0:02:45]} 7. Ne5 {[%clk 0:02:55]}  Nbd7 {[%clk 0:02:44]} 8. Nd2 {[%clk 0:02:52]}  Re8 {[%clk 0:02:35]} 9. h4 {[%clk 0:02:48]}  Nf8 {[%clk 0:02:27]} 10. h5 {[%clk 0:02:45]}  b6 {[%clk 0:02:22]} 11. Qf3 {[%clk 0:02:44]}  Bb7 {[%clk 0:02:21]} 12. Qg3 {[%clk 0:02:34]}  Ne4 {[%clk 0:02:19]} 13. Nxe4 {[%clk 0:02:30]}  dxe4 {[%clk 0:02:19]} 14. Bb5 {[%clk 0:02:27]}  Bf6 {[%clk 0:02:11]} 15. Bxe8 {[%clk 0:02:19]}  Qxe8 {[%clk 0:02:11]} 16. Ng4 {[%clk 0:02:15]}  Nd7 {[%clk 0:02:00]} 17. h6 {[%clk 0:02:11]}  g6 {[%clk 0:01:56]} 18. Nxf6+ {[%clk 0:02:08]}  Nxf6 {[%clk 0:01:57]} 19. Be5 {[%clk 0:02:04]}  Nd7 {[%clk 0:01:54]} 20. c4 {[%clk 0:01:59]}  f6 {[%clk 0:01:48]} 21. Bd6 {[%clk 0:01:55]}  cxd4 {[%clk 0:01:48]} 22. exd4 {[%clk 0:01:52]}  Rc8 {[%clk 0:01:48]} 23. b3 {[%clk 0:01:49]}  g5 {[%clk 0:01:22]} 24. O-O {[%clk 0:01:44]}  Qg6 {[%clk 0:01:22]} 25. a4 {[%clk 0:01:41]}  f5 {[%clk 0:01:06]} 26. Be5 {[%clk 0:01:35]}  Qxh6 {[%clk 0:01:04]} 27. Bf4 {[%clk 0:01:30]}  Kf7 {[%clk 0:00:56]} 28. Qxg5 {[%clk 0:01:29]}  Qxg5 {[%clk 0:00:51]} 29. Bxg5 {[%clk 0:01:29]}  e5 {[%clk 0:00:51]} 30. dxe5 {[%clk 0:01:25]}  Nxe5 {[%clk 0:00:51]} 31. a5 {[%clk 0:01:16]}  b5 {[%clk 0:00:42]} 32. cxb5 {[%clk 0:01:13]}  Rc5 {[%clk 0:00:43]} 33. a6 {[%clk 0:01:10]}  Ba8 {[%clk 0:00:37]} 34. Rfc1 {[%clk 0:01:05]}  Rxb5 {[%clk 0:00:37]} 35. Rc7+ {[%clk 0:01:02]}  Kg6 {[%clk 0:00:38]} 36. Be3 {[%clk 0:00:58]}  Rxb3 {[%clk 0:00:24]} 37. Rxa7 {[%clk 0:00:57]}  Bd5 {[%clk 0:00:24]} 38. Re7 {[%clk 0:00:54]}  Nc4 {[%clk 0:00:22]} 39. a7 {[%clk 0:00:52]}  Nxe3 {[%clk 0:00:18]} 40. fxe3 {[%clk 0:00:51]}  Rxe3 {[%clk 0:00:19]} 41. a8=Q {[%clk 0:00:50]}  Bxa8 {[%clk 0:00:18]} 42. Rxa8 {[%clk 0:00:50]}  Rb3 {[%clk 0:00:18]} 43. Rg8+ {[%clk 0:00:47]}  Kf6 {[%clk 0:00:18]} 44. Rxh7 {[%clk 0:00:47]}  e3 {[%clk 0:00:13]} 45. Re8 {[%clk 0:00:45]}  f4 {[%clk 0:00:14]} 46. Rhe7 {[%clk 0:00:42]}  Rb2 {[%clk 0:00:06]} 47. Re4 {[%clk 0:00:40]}  Kf5 {[%clk 0:00:06]} 48. R8e5+ {[%clk 0:00:39]}  Kg4 {[%clk 0:00:07]} 49. Re8 {[%clk 0:00:36]}  Kf5 {[%clk 0:00:07]} 50. R4e5+ {[%clk 0:00:33]}  Kf6 {[%clk 0:00:06]} 51. R8e6+ {[%clk 0:00:33]}  Kf7 {[%clk 0:00:06]} 52. Rc6 {[%clk 0:00:30]}  Rb1+ {[%clk 0:00:06]} 53. Kh2 {[%clk 0:00:29]}  Rb2 {[%clk 0:00:06]} 54. Rf5+ {[%clk 0:00:28]}  Kg7 {[%clk 0:00:06]} 55. Rxf4 {[%clk 0:00:28]}  e2 {[%clk 0:00:06]} 56. Re6 {[%clk 0:00:27]}  e1=Q {[%clk 0:00:06]} 57. Rxe1 {[%clk 0:00:25]}  Kg6 {[%clk 0:00:06]} 58. Re3 {[%clk 0:00:25]}  Kg5 {[%clk 0:00:06]} 59. Ref3 {[%clk 0:00:24]}  Ra2 {[%clk 0:00:05]} 60. Rf8 {[%clk 0:00:25]}  Kg4 {[%clk 0:00:05]} 61. Rg8+ {[%clk 0:00:25]} 1-0


[Site "https://www.chess.com"]

[Event "Titled Tuesday Blitz February 07 Early 2023"]
[White "Fan_Of_Chucky"]
[Black "Pein, Jonathan"]
[BlackFideId "417092"]
[WhiteElo "2269"]
[BlackElo "2265"]
[Result "0-1"]
[Round "02"]
[TimeControl "180+2"]
[Date "2023.02.07"]
[WhiteClock "0:00:26"]
[BlackClock "0:01:05"]

1. d4 {[%clk 0:02:59]}  d6 {[%clk 0:02:59]} 2. c4 {[%clk 0:02:59]}  g6 {[%clk 0:02:59]} 3. Nf3 {[%clk 0:02:59]}  Bg7 {[%clk 0:02:59]} 4. g3 {[%clk 0:02:59]}  e5 {[%clk 0:02:59]} 5. dxe5 {[%clk 0:02:57]}  dxe5 {[%clk 0:03:00]} 6. Qxd8+ {[%clk 0:02:57]}  Kxd8 {[%clk 0:03:01]} 7. Ng5 {[%clk 0:02:44]}  Ke8 {[%clk 0:02:48]} 8. Bg2 {[%clk 0:02:42]}  h6 {[%clk 0:02:41]} 9. Ne4 {[%clk 0:02:42]}  f5 {[%clk 0:02:41]} 10. Nc5 {[%clk 0:02:42]}  c6 {[%clk 0:02:39]} 11. Nc3 {[%clk 0:02:39]}  Ne7 {[%clk 0:02:36]} 12. O-O {[%clk 0:02:36]}  e4 {[%clk 0:02:36]} 13. f3 {[%clk 0:02:27]}  Bd4+ {[%clk 0:02:35]} 14. Kh1 {[%clk 0:02:27]}  Bxc5 {[%clk 0:02:36]} 15. fxe4 {[%clk 0:02:27]}  Na6 {[%clk 0:02:17]} 16. a3 {[%clk 0:02:22]}  Bd4 {[%clk 0:02:16]} 17. exf5 {[%clk 0:02:16]}  Nxf5 {[%clk 0:02:12]} 18. Ne4 {[%clk 0:02:11]}  Nc5 {[%clk 0:02:11]} 19. Bf4 {[%clk 0:01:59]}  Nxe4 {[%clk 0:01:58]} 20. Bxe4 {[%clk 0:01:59]}  Bxb2 {[%clk 0:01:59]} 21. Rab1 {[%clk 0:01:56]}  Bxa3 {[%clk 0:02:00]} 22. g4 {[%clk 0:01:53]}  Ne7 {[%clk 0:01:55]} 23. h3 {[%clk 0:01:29]}  Bc5 {[%clk 0:01:54]} 24. Be5 {[%clk 0:01:06]}  Rg8 {[%clk 0:01:44]} 25. Bc7 {[%clk 0:00:59]}  a5 {[%clk 0:01:38]} 26. Bc2 {[%clk 0:00:54]}  a4 {[%clk 0:01:37]} 27. Rbd1 {[%clk 0:00:54]}  Be6 {[%clk 0:01:30]} 28. Bxa4 {[%clk 0:00:52]}  Bxc4 {[%clk 0:01:24]} 29. Rc1 {[%clk 0:00:45]}  Rxa4 {[%clk 0:01:20]} 30. Rb1 {[%clk 0:00:39]}  Bd5+ {[%clk 0:01:17]} 31. Kh2 {[%clk 0:00:38]}  b5 {[%clk 0:01:08]} 32. e3 {[%clk 0:00:31]}  Kd7 {[%clk 0:01:06]} 33. Bf4 {[%clk 0:00:27]}  g5 {[%clk 0:01:05]} 34. Bg3 {[%clk 0:00:26]}  Ra2+ {[%clk 0:01:05]} 0-1


[Site "https://www.chess.com"]